bitfinex-derivatives/quotes_SOLF0:USTF0_20250212
["timestamp","ask_amount","ask_price","bid_price","bid_amount"]
[1739337622024,0.93293821,195.94,195.82,27.04016535]
[1739337622230,1.5728,195.97,195.89,5.1061]
[1739337622525,23.4285949,195.96,195.82,27.04016535]
[1739337622724,5.1059,195.91,195.82,4.5444]
[1739337623331,0.03358824,195.88,195.85,0.03804056]
[1739337623532,22.49576535,195.93,195.85,0.03804056]
[1739337623729,0.0329339,195.88,195.79,5.1086]
[1739337623929,0.0329339,195.88,195.87,0.03399955]
[1739337624124,5.1056,195.91,195.76,22.49576535]
[1739337624326,0.03672414,195.89,195.86,0.03425567]
[1739337624532,0.03672414,195.89,195.85,5.1072]
[1739337624832,5.1056,195.91,195.86,0.03335836]
[1739337625033,0.0383628,195.89,195.84,5.1074]
[1739337625233,0.0383628,195.89,195.87,0.03736923]
[1739337626725,0.0383628,195.89,195.87,5.14386923]
[1739337627531,0.0383628,195.89,195.87,0.03736923]
[1739337628136,0.0383628,195.89,195.79,5.1087]
[1739337628437,0.0383628,195.89,195.73,22.49576535]
[1739337628637,2.52204109,195.89,195.73,22.49576535]
[1739337628836,5.1071,195.86,195.79,5.1085]
[1739337629338,0.03652378,195.84,195.81,0.03664066]
[1739337629940,0.03652378,195.84,195.81,5.14484066]
[1739337630240,0.03652378,195.84,195.81,0.03664066]
[1739337630736,0.03652378,195.84,195.83,5.1077]
[1739337633840,0.03652378,195.84,195.81,5.14464066]
[1739337634042,0.03652378,195.84,195.81,0.03664066]
[1739337634539,0.03652378,195.84,195.81,5.14464066]
[1739337634742,0.03652378,195.84,195.81,0.03664066]
[1739337634943,0.03652378,195.84,195.83,5.1077]
[1739337635242,0.03652378,195.84,195.81,0.03664066]
[1739337636542,0.03652378,195.84,195.82,5.1077]
[1739337636743,0.03652378,195.84,195.81,0.03664066]
[1739337636945,5.1054,195.92,195.87,5.1066]
[1739337637143,14.0873297,195.97,195.85,14.0873297]
[1739337637337,0.93293614,195.96,195.85,14.0873297]
[1739337637538,6.03753506,195.95,195.87,5.1067]
[1739337637737,0.93293506,195.94,195.85,14.0873297]
[1739337637938,14.0873297,195.97,195.85,14.0873297]
[1739337638146,0.03799048,195.93,195.89,5.14245488]
[1739337639948,0.03799048,195.93,195.89,0.03635488]
[1739337640647,0.03799048,195.93,195.92,5.1054]
[1739337641249,0.03799048,195.93,195.89,0.03635488]
[1739337642048,23.15920789,196.06,195.95,5.1046]
[1739337642349,0.9326012,196.05,195.9,25.60537678]
[1739337642547,0.9326012,196.04,195.9,25.60537678]
[1739337642740,85.7037304,196.07,195.9,25.60537678]
[1739337642942,0.03292264,196.0,195.97,0.03462837]
[1739337643148,0.93240533,196.06,195.97,0.03462837]
[1739337643345,0.03260764,196.0,195.97,0.03462837]
[1739337643551,84.9891491,196.08,195.97,0.03462837]
[1739337644049,90.0903491,196.08,196.0,5.1032]
[1739337644450,84.9891491,196.08,195.96,22.52887678]
[1739337644654,0.03450507,196.06,196.02,0.03328587]
[1739337644843,5.13620507,196.06,196.02,0.03328587]
[1739337645949,5.102,196.05,196.02,0.03328587]
[1739337646553,0.03450507,196.06,196.02,0.03328587]
[1739337647754,5.13620507,196.06,196.02,0.03328587]
[1739337648550,0.03450507,196.06,196.02,0.03328587]
[1739337648756,5.1024,196.04,196.02,0.03328587]
[1739337649157,0.03450507,196.06,196.02,0.03328587]
[1739337650055,5.1021,196.05,196.02,0.03328587]
[1739337650358,0.03450507,196.06,196.02,0.03328587]
[1739337650760,5.1025,196.03,196.02,0.03328587]
[1739337652064,0.03450507,196.06,196.02,0.03328587]
[1739337652264,0.96687468,196.06,196.02,0.03328587]
[1739337653864,5.1025,196.03,196.02,0.03328587]
[1739337654864,0.03450507,196.06,196.02,0.03328587]
[1739337654865,5.102,196.05,196.02,0.03328587]
[1739337655466,5.1025,196.03,196.02,0.03328587]
[1739337659861,14.10075112,196.06,196.02,0.03328587]
[1739337660369,5.1024,196.04,196.02,0.03328587]
[1739337660770,14.10075112,196.06,196.02,0.03328587]
[1739337661067,5.1025,196.03,196.02,0.03328587]
[1739337661472,14.06624605,196.03,195.91,1.5939]
[1739337661765,14.06624605,196.03,195.91,3.155]
[1739337662674,0.03793568,195.99,195.95,0.0352803]
[1739337663072,14.06624605,196.0,195.91,3.155]
[1739337663267,0.03530814,195.99,195.95,0.03670537]
[1739337665968,5.1043,195.97,195.95,0.03670537]
[1739337666173,0.03530814,195.99,195.95,0.03670537]
[1739337666878,5.1043,195.96,195.95,0.03670537]
[1739337667776,0.03530814,195.99,195.95,0.03670537]
[1739337669779,5.13910814,195.99,195.95,0.03670537]
[1739337671279,0.03530814,195.99,195.95,0.03670537]
[1739337671475,5.1043,195.96,195.95,0.03670537]
[1739337672584,14.06624605,195.97,195.95,0.03670537]
[1739337672877,0.03530814,195.99,195.95,0.03670537]
[1739337674280,5.13890814,195.99,195.95,0.03670537]
[1739337674975,0.03530814,195.99,195.95,0.03670537]
[1739337675281,14.06624605,195.97,195.95,0.03670537]
[1739337676883,5.1043,195.96,195.95,0.03670537]
[1739337677780,5.1056,195.92,195.85,1.6263]
[1739337677978,14.06624605,195.94,195.87,5.1066]
[1739337678284,14.06624605,195.94,195.85,1.6263]
[1739337678880,19.17114605,195.94,195.87,5.1066]
[1739337679180,0.03812337,195.91,195.88,0.03669199]
[1739337679586,0.03812337,195.91,195.89,5.1061]
[1739337679780,0.03812337,195.91,195.88,0.03669199]
[1739337680377,0.03812337,195.91,195.88,5.14309199]
[1739337680581,0.03812337,195.91,195.88,0.03669199]
[1739337681390,0.03812337,195.91,195.9,5.1059]
[1739337681589,0.03812337,195.91,195.88,0.03669199]
[1739337685178,5.14382337,195.91,195.88,0.03669199]
[1739337685380,14.10436942,195.91,195.88,0.03669199]
[1739337685588,5.1061,195.9,195.88,0.03669199]
[1739337685891,14.10436942,195.91,195.88,0.03669199]
[1739337686188,0.03812337,195.91,195.88,5.14299199]
[1739337686389,0.03812337,195.91,195.88,0.03669199]
[1739337690694,5.1059,195.9,195.88,0.03669199]
[1739337690889,14.10436942,195.91,195.88,0.03669199]
[1739337691285,5.1061,195.89,195.88,0.03669199]
[1739337692182,14.10436942,195.91,195.88,0.03669199]
[1739337692592,0.03812337,195.91,195.88,0.03669199]
[1739337696395,84.9891491,196.06,195.88,0.03669199]
[1739337696396,14.06624605,196.0,195.88,0.03669199]
[1739337696590,14.06624605,196.0,195.9,14.06624605]
[1739337696792,5.1039,195.98,195.9,5.1059]
[1739337697392,0.03367711,195.96,195.92,0.03376454]
[1739337699395,0.03367711,195.96,195.92,5.13906454]
[1739337700797,0.03367711,195.96,195.92,0.03376454]
[1739337701190,5.13797711,195.96,195.92,0.03376454]
[1739337701896,0.03367711,195.96,195.92,0.03376454]
[1739337702498,0.03367711,195.96,195.93,5.1051]
[1739337702900,0.03367711,195.96,195.95,5.1046]
[1739337703298,0.03367711,195.96,195.92,0.03376454]
[1739337703701,0.03367711,195.96,195.92,5.13916454]
[1739337703908,0.03367711,195.96,195.92,0.03376454]
[1739337705401,5.1048,195.95,195.92,0.03376454]
[1739337705800,0.03367711,195.96,195.92,0.03376454]
[1739337706103,14.06624605,195.94,195.92,0.03376454]
[1739337706898,5.1051,195.93,195.92,0.03376454]
[1739337708198,14.06624605,195.94,195.92,0.03376454]
[1739337709905,19.17104605,195.94,195.92,0.03376454]
[1739337710514,14.06624605,195.94,195.92,0.03376454]
[1739337710699,5.1051,195.93,195.92,0.03376454]
[1739337710903,14.06624605,195.94,195.82,1.5147]
[1739337711106,14.06624605,195.91,195.82,1.5147]
[1739337711413,14.06624605,195.91,195.81,3.0986]
[1739337711702,19.17214605,195.91,195.84,5.1075]
[1739337712002,14.06624605,195.91,195.84,5.1075]
[1739337712209,0.03328202,195.89,195.86,0.03261921]
[1739337712908,0.03328202,195.89,195.88,5.1064]
[1739337713209,14.06624605,195.97,195.86,0.03261921]
[1739337713410,5.104,195.98,195.91,5.1056]
[1739337713809,3.1867,195.99,195.87,14.06624605]
[1739337714109,5.1041,195.97,195.9,5.1059]
[1739337714506,0.03445516,195.95,195.92,0.03828369]
[1739337715613,0.03445516,195.95,195.92,5.14358369]
[1739337715813,0.03445516,195.95,195.92,0.03828369]
[1739337719817,0.03445516,195.95,195.94,5.1048]
[1739337720227,0.03445516,195.95,195.92,0.03828369]
[1739337720921,0.03445516,195.95,195.93,5.1051]
[1739337721724,17.12264605,196.06,195.95,5.1045]
[1739337722319,5.1033,196.01,195.93,14.06624605]
[1739337722820,0.03239328,195.99,195.95,0.03489581]
[1739337723323,5.1021,196.05,195.96,14.06624605]
[1739337723625,5.1021,196.05,195.97,1.6137]
[1739337724021,14.06624605,196.09,195.97,1.6137]
[1739337724222,5.1024,196.04,195.97,1.6137]
[1739337724426,5.1024,196.04,196.01,0.03489258]
[1739337724722,0.03335782,196.05,196.01,0.03489258]
[1739337728532,14.06624605,196.04,196.01,0.03489258]
[1739337728727,5.1028,196.02,196.01,0.03489258]
[1739337729131,15.54064605,196.04,195.92,1.6101]
[1739337729327,14.06624605,196.0,195.87,14.06624605]
[1739337729732,5.1038,195.98,195.91,5.1056]
[1739337729925,5.1038,195.98,195.87,14.06624605]
[1739337729926,14.06624605,196.0,195.87,14.06624605]
[1739337730326,0.03249921,195.95,195.92,0.03658711]
[1739337731725,5.13719921,195.95,195.92,0.03658711]
[1739337732222,0.03249921,195.95,195.92,0.03658711]
[1739337735329,5.13729921,195.95,195.92,0.03658711]
[1739337737029,5.1051,195.93,195.92,0.03658711]
[1739337737530,14.06624605,195.94,195.78,14.06624605]
[1739337737732,14.06624605,195.89,195.78,14.06624605]
[1739337738625,0.0345574,195.86,195.82,0.03299723]
[1739337745633,0.0345574,195.86,195.82,5.14099723]
[1739337746940,0.0345574,195.86,195.82,0.03299723]
[1739337749336,5.1415574,195.86,195.82,0.03299723]
[1739337749534,14.10080345,195.86,195.82,0.03299723]
[1739337750438,5.1077,195.84,195.82,0.03299723]
[1739337750639,14.10080345,195.86,195.82,0.03299723]
[1739337751430,5.1072,195.85,195.82,0.03299723]
[1739337751739,0.0345574,195.86,195.82,0.03299723]
[1739337752537,0.0345574,195.86,195.82,5.14099723]
[1739337752932,0.0345574,195.86,195.82,0.03299723]
[1739337753243,0.0345574,195.86,195.84,5.1074]
[1739337753629,0.0345574,195.86,195.82,0.03299723]
[1739337754736,0.0345574,195.86,195.84,5.1074]
[1739337757245,14.06624605,195.95,195.82,0.03299723]
[1739337757542,14.06624605,195.95,195.84,14.06624605]
[1739337757745,5.1044,195.96,195.89,5.1061]
[1739337758145,5.1044,195.96,195.85,3.1577]
[1739337758546,0.03924385,195.92,195.89,0.03864676]
[1739337762348,14.1054899,195.92,195.89,0.03864676]
[1739337762554,5.1056,195.91,195.89,0.03864676]
[1739337762749,14.1054899,195.92,195.89,0.03864676]
[1739337763747,0.03924385,195.92,195.89,0.03864676]
[1739337765456,0.03924385,195.92,195.91,5.1056]
[1739337766048,195.0,196.0,195.95,5.1045]
[1739337766249,10.08839385,196.03,195.9,2.9561]
[1739337766454,0.93253247,196.02,195.9,2.9561]
[1739337766749,19.16854605,196.04,195.96,5.1043]
[1739337766957,0.93251592,196.03,195.9,2.9561]
[1739337767258,0.03360744,196.02,195.98,0.03461195]
[1739337767757,0.03360744,196.02,195.98,5.13831195]
[1739337767958,0.03360744,196.02,195.98,0.03461195]
[1739337769253,0.03360744,196.02,195.98,5.13841195]
[1739337769956,0.03360744,196.02,195.98,0.03461195]
[1739337770357,0.03360744,196.02,196.0,5.1032]
[1739337771355,0.03360744,196.02,195.98,0.03461195]
[1739337771852,5.1004,196.12,196.01,14.06624605]
[1739337772057,14.06624605,196.13,196.02,1.5118]
[1739337772257,0.93209598,196.12,196.02,1.5118]
[1739337772959,0.93209598,196.12,196.05,0.03798892]
[1739337773163,14.06624605,196.13,196.05,0.03798892]
[1739337773363,0.93207607,196.12,196.05,0.03798892]
[1739337773764,5.1007,196.1,196.05,0.03798892]
[1739337773961,14.06624605,196.13,196.05,0.03798892]
[1739337774163,14.06624605,196.16,196.05,0.03798892]
[1739337774362,5.1003,196.12,196.06,5.1015]
[1739337774563,5.1003,196.12,196.09,0.03612197]
[1739337775259,14.06624605,196.16,196.09,0.03612197]
[1739337775460,0.93196706,196.15,196.09,0.03612197]
[1739337776462,0.9319954,196.14,196.09,0.03612197]
[1739337776660,0.9319954,196.13,196.09,0.03612197]
[1739337776862,5.0997,196.14,196.09,0.03612197]
[1739337777061,0.9320035,196.13,196.09,0.03612197]
[1739337777765,5.0994,196.15,196.09,0.03612197]
[1739337777966,0.93199843,196.14,196.09,0.03612197]
[1739337778165,5.0994,196.15,196.09,0.03612197]
[1739337778368,0.93199839,196.14,196.09,0.03612197]
[1739337778757,5.0999,196.13,196.09,0.03612197]
[1739337779163,5.0997,196.14,196.09,0.03612197]
[1739337779467,14.06624605,196.16,196.09,0.03612197]
[1739337779767,0.9320034,196.15,196.09,0.03612197]
[1739337779967,0.9320034,196.14,196.09,0.03612197]
[1739337780167,0.9320034,196.13,196.09,0.03612197]
[1739337780369,5.1002,196.12,196.09,0.03612197]
[1739337780762,14.06624605,196.13,196.09,0.03612197]
[1739337781468,19.16614605,196.13,196.09,0.03612197]
[1739337781769,14.06624605,196.13,196.09,0.03612197]
[1739337782169,5.1006,196.11,196.09,0.03612197]
[1739337782370,14.06624605,196.13,196.09,0.03612197]
[1739337783070,5.1005,196.11,196.09,0.03612197]
[1739337783369,14.06624605,196.13,196.09,0.03612197]
[1739337783665,5.1004,196.11,196.09,0.03612197]
[1739337784671,5.1002,196.12,196.09,0.03612197]
[1739337785070,14.06624605,196.13,196.09,0.03612197]
[1739337785371,19.16634605,196.13,196.09,0.03612197]
[1739337785572,14.06624605,196.16,196.09,0.03612197]
[1739337785761,0.93199799,196.15,196.09,0.03612197]
[1739337787367,14.06624605,196.13,196.09,0.03612197]
[1739337787572,5.1007,196.1,196.09,0.03612197]
[1739337792870,14.06624605,196.16,196.09,0.03612197]
[1739337793066,0.9319201,196.15,196.02,3.054]
[1739337793272,14.06624605,196.16,196.11,0.03524833]
[1739337793473,0.9319199,196.15,196.05,14.06624605]
[1739337793674,5.0994,196.15,196.07,5.1012]
[1739337793873,14.06624605,196.16,196.08,0.03218933]
[1739337794068,14.06624605,196.13,196.08,0.03218933]
[1739337794969,5.1004,196.12,196.08,0.03218933]
[1739337795877,14.06624605,196.13,196.08,0.03218933]
[1739337798277,19.16624605,196.13,196.08,0.03218933]
[1739337798576,14.06624605,196.13,196.08,0.03218933]
[1739337799276,14.06624605,196.16,196.08,0.03218933]
[1739337799776,14.06624605,196.16,196.1,5.1006]
[1739337801880,19.16554605,196.16,196.09,5.1009]
[1739337802076,14.06624605,196.16,196.09,5.1009]
[1739337802472,19.16544605,196.16,196.09,5.1009]
[1739337802677,14.06624605,196.16,196.08,0.03218933]
[1739337802877,0.93190851,196.15,196.08,0.03218933]
[1739337803682,14.06624605,196.16,196.08,0.03218933]
[1739337803882,19.16564605,196.16,196.09,5.1009]
[1739337804273,5.0994,196.15,196.08,5.13338933]
[1739337805682,5.0994,196.15,196.09,5.1009]
[1739337806583,5.0994,196.15,196.08,0.03218933]
[1739337806788,14.06624605,196.16,196.08,0.03218933]
[1739337806985,19.16534605,196.16,196.08,0.03218933]
[1739337807688,19.16534605,196.16,196.09,5.1007]
[1739337807888,19.16534605,196.16,196.08,0.03218933]
[1739337808689,5.0994,196.15,196.08,5.13318933]
[1739337808888,5.0994,196.15,196.08,0.03218933]
[1739337809885,5.0994,196.15,196.09,5.1008]
[1739337811089,15.69014605,196.19,196.08,0.03218933]
[1739337811286,5.0991,196.17,196.1,5.1007]
[1739337811490,0.93190349,196.16,196.1,5.1007]
[1739337811785,6.03100349,196.16,196.12,0.03487785]
[1739337811991,15.69014605,196.19,196.12,0.03487785]
[1739337812291,15.69014605,196.19,196.12,5.13497785]
[1739337812491,5.0989,196.17,196.12,0.03487785]
[1739337813592,81.68297372,196.23,196.12,0.03487785]
[1739337813795,0.931615,196.22,196.12,0.03487785]
[1739337814289,58.47316046,196.23,196.16,5.0991]
[1739337814695,58.47316046,196.23,196.18,0.03452257]
[1739337821090,5.0976,196.22,196.18,0.03452257]
[1739337821298,58.47316046,196.23,196.18,0.03452257]
[1739337821594,5.0983,196.19,196.18,0.03452257]
[1739337821999,72.53940651,196.23,196.18,0.03452257]
[1739337822298,0.93159735,196.22,196.18,0.03452257]
[1739337822698,14.06624605,196.2,196.18,0.03452257]
[1739337823197,0.93177767,196.19,196.18,0.03452257]
[1739337823398,0.93177767,196.19,196.04,1.5331]
[1739337823595,0.93177767,196.19,196.01,7.04547152]
[1739337823596,14.06624605,196.14,196.01,7.04547152]
[1739337823792,3.0136,196.18,196.01,7.04547152]
[1739337823793,14.06624605,196.11,196.01,7.04547152]
[1739337823997,5.101,196.09,195.99,14.06624605]
[1739337824700,0.03261209,196.06,196.02,0.03262625]
[1739337825494,0.03261209,196.06,196.03,5.1025]
[1739337825698,0.03261209,196.06,196.02,14.0988723]
[1739337825899,14.06624605,196.17,196.05,14.06624605]
[1739337826100,0.93196274,196.16,196.06,1.5443]
[1739337826498,5.0997,196.14,196.06,1.5443]
[1739337827102,14.06624605,196.17,196.08,0.0329776]
[1739337827300,14.06624605,196.14,196.08,0.0329776]
[1739337827695,5.1009,196.09,196.08,0.0329776]
[1739337828693,14.06624605,196.11,196.08,0.0329776]
[1739337828899,14.06624605,196.14,196.08,0.0329776]
[1739337829105,0.93209442,196.13,196.08,0.0329776]
[1739337829804,19.16594605,196.14,196.08,0.0329776]
[1739337830003,14.06624605,196.14,196.08,0.0329776]
[1739337830704,19.16614605,196.14,196.08,0.0329776]
[1739337831002,14.06624605,196.14,196.08,0.0329776]
[1739337831393,5.1,196.13,196.08,0.0329776]
[1739337832606,210.63824605,196.17,196.08,0.0329776]
[1739337832901,15.63824605,196.17,196.08,0.0329776]
[1739337833507,20.73734605,196.17,196.09,5.1008]
[1739337834101,14.06624605,196.2,196.08,14.09922365]
[1739337834304,0.9317929,196.19,196.08,14.06624605]
[1739337834501,17.18954605,196.23,196.12,0.03393704]
[1739337834711,0.93173164,196.22,196.12,0.03393704]
[1739337834906,17.18954605,196.23,196.12,0.03393704]
[1739337835100,14.06624605,196.16,196.12,0.03393704]
[1739337835710,5.0989,196.17,196.12,0.03393704]
[1739337835910,14.06624605,196.2,196.12,0.03393704]
[1739337836103,0.93187726,196.19,196.12,0.03393704]
[1739337836611,5.099,196.17,196.12,0.03393704]
[1739337837505,5.0984,196.19,196.12,0.03393704]
[1739337837709,0.93187071,196.18,196.12,0.03393704]
[1739337837907,6.03087071,196.17,196.12,0.03393704]
[1739337838206,5.099,196.17,196.12,0.03393704]
[1739337838407,14.06624605,196.2,196.12,0.03393704]
[1739337838608,6.03019184,196.19,196.12,0.03393704]
[1739337838801,14.06624605,196.2,196.12,0.03393704]
[1739337839007,0.93173447,196.19,196.12,0.03393704]
[1739337839808,5.0987,196.18,196.12,0.03393704]
[1739337840209,14.06624605,196.2,196.12,0.03393704]
[1739337840708,0.93173479,196.19,196.12,0.03393704]
[1739337841210,5.0996,196.14,196.12,0.03393704]
[1739337841410,14.06624605,196.2,196.12,0.03393704]
[1739337841610,5.0993,196.16,196.12,0.03393704]
[1739337841812,14.06624605,196.2,196.12,0.03393704]
[1739337842111,0.93180204,196.19,196.12,0.03393704]
[1739337842311,14.06624605,196.17,196.12,0.03393704]
[1739337843003,5.0992,196.16,196.12,0.03393704]
[1739337843209,14.06624605,196.2,196.12,0.03393704]
[1739337843412,0.93179486,196.19,196.12,0.03393704]
[1739337843611,196.5181,196.23,196.16,5.099]
[1739337843807,1.5181,196.23,196.16,5.099]
[1739337844112,1.5181,196.23,196.18,0.0323602]
[1739337844612,1.6258,196.24,196.18,0.0323602]
[1739337845904,6.7229,196.24,196.18,0.0323602]
[1739337846206,1.6258,196.24,196.18,0.0323602]
[1739337846406,5.0979,196.21,196.18,0.0323602]
[1739337847014,1.6258,196.24,196.18,0.0323602]
[1739337847210,5.0978,196.21,196.18,0.0323602]
[1739337847407,1.6258,196.24,196.18,0.0323602]
[1739337847610,22.46043985,196.22,196.18,0.0323602]
[1739337847910,5.0978,196.21,196.18,0.0323602]
[1739337848111,1.6258,196.24,196.18,0.0323602]
[1739337848306,5.0976,196.22,196.18,0.0323602]
[1739337848510,1.6258,196.24,196.18,0.0323602]
[1739337848706,0.93159777,196.23,196.18,0.0323602]
[1739337850209,6.02909777,196.23,196.18,0.0323602]
[1739337850415,1.6258,196.24,196.18,0.0323602]
[1739337850617,0.93157806,196.23,196.18,0.0323602]
[1739337851815,5.0976,196.22,196.18,0.0323602]
[1739337852408,1.6258,196.24,196.18,0.0323602]
[1739337852715,100.0,196.25,196.18,0.0323602]
[1739337853013,0.93155963,196.24,196.18,0.0323602]
[1739337853718,5.0974,196.23,196.18,0.0323602]
[1739337853918,100.0,196.25,196.18,0.0323602]
[1739337854117,0.93157163,196.24,196.18,0.0323602]
[1739337854412,5.0981,196.2,196.18,0.0323602]
[1739337854818,100.0,196.25,196.18,0.0323602]
[1739337855012,0.93169001,196.24,196.18,0.0323602]
[1739337855414,5.0983,196.19,196.18,0.0323602]
[1739337855716,22.46043985,196.22,196.09,3.0673]
[1739337855915,22.46043985,196.19,196.09,3.0673]
[1739337856110,5.0989,196.17,196.09,6.5825]
[1739337856513,22.46043985,196.19,196.04,1.5031]
[1739337856819,0.03427069,196.15,196.11,0.03327647]
[1739337857012,0.93184336,196.15,196.03,1.4922]
[1739337857214,0.96403008,196.15,196.03,1.4922]
[1739337857409,22.46043985,196.13,196.07,0.03620383]
[1739337857615,0.03427069,196.11,196.07,0.03620383]
[1739337859119,22.46043985,196.1,195.94,22.46043985]
[1739337859316,3.62,196.09,195.94,22.46043985]
[1739337860419,0.03511824,196.03,196.0,0.03409284]
[1739337863518,5.13771824,196.03,196.0,0.03409284]
[1739337863719,0.03511824,196.03,196.0,0.03409284]
[1739337867328,5.1028,196.02,196.0,0.03409284]
[1739337867528,1.5117,196.02,196.0,0.03409284]
[1739337867728,14.07272972,196.01,196.0,0.03409284]
[1739337867924,14.07272972,196.01,195.92,5.1054]
[1739337869025,14.07272972,196.01,195.94,5.1048]
[1739337869227,0.03799563,195.98,195.95,0.03890507]
[1739337870428,0.03799563,195.98,195.95,5.14350507]
[1739337871627,0.03799563,195.98,195.96,5.1043]
[1739337872124,0.03799563,195.98,195.95,0.03890507]
[1739337874927,0.03799563,195.98,195.95,5.14350507]
[1739337875128,0.03799563,195.98,195.95,0.03890507]
[1739337875327,14.11072535,195.98,195.95,0.03890507]
[1739337875834,14.11072535,195.98,195.88,5.1064]
[1739337876028,14.07272972,195.95,195.88,5.1064]
[1739337876926,0.03799748,195.93,195.9,0.03512729]
[1739337878733,5.14319748,195.93,195.9,0.03512729]
[1739337879230,0.03799748,195.93,195.9,0.03512729]
[1739337887330,0.03799748,195.93,195.9,1.59252729]
[1739337887734,0.03799748,195.93,195.92,5.1054]
[1739337888434,0.03799748,195.93,195.9,1.59252729]
[1739337888732,0.03799748,195.93,195.9,0.03512729]
[1739337890236,5.14309748,195.93,195.9,0.03512729]
[1739337890430,0.03799748,195.93,195.9,0.03512729]
[1739337892841,0.03799748,195.93,195.91,5.1056]
[1739337893634,0.03799748,195.93,195.92,5.1054]
[1739337895435,0.03799748,195.93,195.91,5.1054]
[1739337897943,0.03799748,195.93,195.91,5.1056]
[1739337899338,0.03799748,195.93,195.9,0.03512729]
[1739337900542,5.1056,195.91,195.9,0.03512729]
[1739337901342,5.1067,195.87,195.81,1.6047]
[1739337901639,14.07272972,195.88,195.81,1.6047]
[1739337901840,14.07272972,195.91,195.81,1.6047]
[1739337902239,14.07272972,195.91,195.84,5.1074]
[1739337902435,0.03752893,195.89,195.81,1.6047]
[1739337902643,0.03752893,195.89,195.86,0.03567666]
[1739337906551,0.03752893,195.89,195.86,14.10840638]
[1739337906743,0.03752893,195.89,195.88,5.1064]
[1739337906948,19.17662972,195.98,195.86,14.10840638]
[1739337907149,19.17662972,195.98,195.87,1.5702]
[1739337907443,14.07272972,195.98,195.87,1.5702]
[1739337907646,5.1041,195.97,195.87,1.5702]
[1739337908043,0.03409148,195.94,195.9,0.03845289]
[1739337908249,0.03409148,195.94,195.9,5.14435289]
[1739337908943,0.03409148,195.94,195.9,0.03845289]
[1739337909444,199.6218,196.04,195.92,14.07272972]
[1739337909445,22.19682972,196.04,195.92,14.07272972]
[1739337909646,20.71492972,196.04,195.92,14.07272972]
[1739337909846,15.61252972,196.04,195.94,5.1046]
[1739337910045,5.1028,196.03,195.94,5.1046]
[1739337910443,5.1028,196.03,195.95,5.1045]
[1739337910640,0.03458779,196.0,195.97,0.03221924]
[1739337911749,0.03458779,196.0,195.99,5.1035]
[1739337911942,0.03458779,196.0,195.97,0.03221924]
[1739337912142,0.03458779,196.0,195.99,5.1035]
[1739337912345,1.4819,196.09,195.98,14.07272972]
[1739337912547,14.07272972,196.1,195.98,14.07272972]
[1739337912850,5.1012,196.09,196.03,5.1024]
[1739337913452,0.03511052,196.08,196.04,0.03356056]
[1739337914354,0.03511052,196.08,196.04,5.13556056]
[1739337915043,0.03511052,196.08,196.05,5.102]
[1739337915247,0.03511052,196.08,196.04,0.03356056]
[1739337917255,0.03511052,196.08,196.06,5.1016]
[1739337917558,0.03511052,196.08,196.04,0.03356056]
[1739337918457,0.03511052,196.08,196.05,5.102]
[1739337918752,0.03511052,196.08,196.04,0.03356056]
[1739337918949,0.03511052,196.08,196.06,5.1015]
[1739337923457,0.03511052,196.08,196.07,5.1015]
[1739337923661,1.68902,196.18,196.07,14.07272972]
[1739337923959,0.93185389,196.17,196.07,14.07272972]
[1739337924154,5.0991,196.16,196.1,5.1007]
[1739337924361,14.07272972,196.16,196.05,1.5572]
[1739337924748,14.07272972,196.16,196.09,0.03726041]
[1739337924956,0.03668541,196.12,196.09,0.03726041]
[1739337926057,5.13688541,196.12,196.09,0.03726041]
[1739337926258,0.03668541,196.12,196.09,0.03726041]
[1739337927462,0.03668541,196.12,196.11,5.1004]
[1739337930060,0.19152,196.18,196.11,5.1004]
[1739337930358,0.19152,196.18,196.16,5.099]
[1739337930561,0.19152,196.18,196.1,15.64972972]
[1739337931262,0.19152,196.18,196.11,5.1002]
[1739337931463,0.19152,196.18,196.12,0.03651788]
[1739337932368,5.0994,196.15,196.12,0.03651788]
[1739337933367,14.07272972,196.16,196.12,0.03651788]
[1739337933569,19.17192972,196.16,196.12,0.03651788]
[1739337935069,5.0999,196.13,196.12,0.03651788]
[1739337936871,5.0996,196.15,196.12,0.03651788]
[1739337937273,14.07272972,196.16,196.12,0.03651788]
[1739337937969,5.0999,196.13,196.12,0.03651788]
[1739337938175,19.17262972,196.13,196.12,0.03651788]
[1739337938575,5.1002,196.12,196.05,5.1018]
[1739337938877,14.07272972,196.13,196.01,1.577]
[1739337939077,0.93213974,196.12,196.01,1.577]
[1739337939575,14.07272972,196.13,196.01,1.577]
[1739337939775,0.03711347,196.08,196.05,0.03775792]
[1739337940080,0.03711347,196.08,196.06,5.1015]
[1739337940278,0.03711347,196.08,196.05,0.03775792]
[1739337940781,0.03711347,196.08,196.06,5.1017]
[1739337943084,0.03711347,196.08,196.05,0.03775792]